bitfinex-derivatives/quotes_ETHF0:USTF0_20250830
["timestamp","ask_amount","ask_price","bid_price","bid_amount"]
[1756516051973,0.478,4344.0,4343.9,0.95728999]
[1756516052172,0.478,4344.0,4343.9,0.7271]
[1756516052972,0.00252194,4344.7,4343.9,0.7271]
[1756516053167,0.00252194,4344.7,4344.0,0.3002]
[1756516053374,0.2891,4344.6,4344.0,0.3002]
[1756516054072,0.478,4344.1,4344.0,0.4951]
[1756516054273,0.1889,4344.1,4344.0,0.7271]
[1756516054473,0.00252194,4344.7,4344.0,0.4269]
[1756516054679,0.00252194,4344.7,4344.1,0.3002]
[1756516054976,0.1889,4344.2,4344.1,0.4951]
[1756516055278,0.478,4344.2,4344.1,0.4951]
[1756516058277,0.478,4344.2,4344.1,0.7369]
[1756516063876,0.284,4344.4,4344.1,0.7369]
[1756516064079,0.284,4344.4,4344.2,0.2915]
[1756516064392,0.284,4344.6,4344.5,0.2047]
[1756516064576,0.284,4344.6,4344.5,0.4367]
[1756516064776,0.284,4344.6,4344.5,0.7282]
[1756516065080,0.4747,4344.6,4344.5,0.7282]
[1756516068180,0.00252194,4344.7,4344.6,0.2915]
[1756516068376,0.00252194,4344.7,4344.6,0.4962]
[1756516068575,0.28652194,4344.7,4344.6,0.4962]
[1756516069681,0.47722194,4344.7,4344.6,0.4962]
[1756516081491,0.47722194,4344.7,4344.6,2.14681494]
[1756516082290,0.47722194,4344.7,4344.6,0.4962]
[1756516084594,0.00252194,4344.7,4344.6,0.4962]
[1756516084795,0.00252194,4344.7,4344.6,3.704]
[1756516085288,0.284,4346.5,4345.5,0.2047]
[1756516085497,1.0263718,4346.4,4346.3,0.4962]
[1756516085688,1.0263718,4346.4,4346.3,0.7222]
[1756516085689,0.4747,4346.4,4346.3,0.7222]
[1756516086294,0.4747,4346.4,4346.3,2.37527033]
[1756516087290,3.4939,4346.6,4346.4,0.3109]
[1756516087490,3.4939,4346.6,4346.5,0.1955]
[1756516087691,3.6975,4346.6,4346.5,0.5064]
[1756516091395,9.8599041,4365.3,4347.1,0.1955]
[1756516091396,3.6975,4347.2,4347.1,0.1955]
[1756516091599,3.6975,4347.2,4347.1,0.7384]
[1756516092695,3.2078,4347.2,4347.1,0.7384]
[1756516092893,3.2078,4347.7,4347.2,0.3109]
[1756516093091,3.6975,4347.7,4347.6,0.5064]
[1756516093293,3.6975,4347.7,4347.6,0.7384]
[1756516093692,3.6975,4347.7,4347.6,0.232]
[1756516093894,3.4114,4347.7,4347.2,0.3109]
[1756516094100,3.4114,4347.7,4347.6,0.5429]
[1756516094396,3.4114,4347.7,4347.6,0.7384]
[1756516094594,3.6975,4347.7,4347.6,0.7384]
[1756516096197,3.6975,4347.7,4347.6,0.232]
[1756516097000,3.6975,4347.7,4347.6,0.7384]
[1756516097401,3.2078,4347.7,4347.6,0.7384]
[1756516098295,3.4939,4347.7,4347.6,0.7384]
[1756516098496,3.6975,4347.7,4347.6,0.7384]
[1756516098700,0.2861,4347.6,4347.2,0.3109]
[1756516098996,0.4897,4347.3,4347.2,0.5064]
[1756516099194,0.2861,4347.6,4347.2,0.1955]
[1756516099496,0.2861,4347.6,4347.5,0.1955]
[1756516099799,0.2861,4347.6,4347.5,0.7384]
[1756516099999,0.4897,4347.6,4347.5,0.7384]
[1756516103400,0.2036,4347.2,4347.1,36.3558]
[1756516103598,0.4897,4347.2,4347.1,36.5878]
[1756516103905,0.4897,4347.2,4347.1,36.8987]
[1756516104402,0.4897,4347.2,4347.1,36.6667]
[1756516104605,0.4897,4347.2,4347.1,36.8987]
[1756516105505,0.4897,4347.2,4347.1,36.6667]
[1756516105706,0.4897,4347.2,4347.1,36.8987]
[1756516108009,0.4897,4347.2,4347.1,36.6667]
[1756516108208,0.4897,4347.2,4347.1,36.8987]
[1756516110404,0.4897,4347.2,4347.1,36.6667]
[1756516110599,0.4897,4347.2,4347.1,36.8987]
[1756516111913,0.4897,4347.2,4347.1,33.6909]
[1756516112312,3.4114,4347.7,4347.6,0.5064]
[1756516112512,3.4114,4347.7,4347.6,0.7384]
[1756516112713,3.4114,4347.7,4347.6,0.232]
[1756516112926,3.6975,4347.7,4347.6,0.232]
[1756516113314,3.6975,4347.7,4347.6,0.5429]
[1756516114516,3.6975,4347.7,4347.6,0.7384]
[1756516115310,3.2078,4347.7,4347.6,0.7384]
[1756516117618,3.396,4348.5,4348.4,0.2016]
[1756516117825,3.396,4348.5,4348.4,0.7242]
[1756516118113,3.2078,4348.5,4348.4,0.7242]
[1756516119711,0.4913,4349.1,4349.0,0.2016]
[1756516119913,0.4913,4349.1,4349.0,0.7242]
[1756516123330,3.2078,4349.2,4349.1,0.2906]
[1756516123525,0.3031,4349.7,4349.2,0.2906]
[1756516123727,0.1882,4349.7,4349.6,0.2016]
[1756516124030,0.4913,4349.7,4349.6,0.7242]
[1756516126823,4.7212,4349.7,4348.8,3.2078]
[1756516127028,0.4913,4348.8,4348.7,33.4216]
[1756516127328,0.4913,4348.8,4348.7,33.6546]
[1756516129737,0.4913,4348.8,4348.7,33.4216]
[1756516130039,0.4913,4348.8,4348.7,33.6546]
[1756516132539,0.4913,4348.8,4348.7,33.4216]
[1756516132738,0.4913,4348.8,4348.7,33.6546]
[1756516134440,0.1882,4349.1,4349.0,0.2016]
[1756516134641,0.4913,4349.1,4349.0,0.7252]
[1756516138744,0.4913,4349.1,4348.7,33.131]
[1756516138937,0.1882,4348.8,4348.7,33.131]
[1756516139137,0.4913,4348.8,4348.7,33.364]
[1756516139643,0.4913,4348.8,4348.7,33.6546]
[1756516140644,3.2078,4349.0,4348.9,0.2016]
[1756516140945,3.2078,4349.0,4348.9,0.7252]
[1756516141146,3.5109,4349.0,4348.9,0.7252]
[1756516141349,3.6991,4349.0,4348.9,0.7252]
[1756516142543,3.2078,4349.0,4348.9,0.7252]
[1756516143746,3.6991,4349.0,4348.9,0.7252]
[1756516145850,3.2078,4349.0,4348.9,0.7252]
[1756516147047,0.3031,4349.3,4349.0,0.2868]
[1756516147253,0.3031,4349.3,4349.2,0.1952]
[1756516147453,0.3031,4349.3,4349.2,0.482]
[1756516148041,3.2078,4349.5,4349.4,0.1952]
[1756516148248,3.2078,4349.5,4349.4,0.715]
[1756516148546,0.2856,4349.7,4349.6,0.1952]
[1756516148748,0.4855,4349.9,4349.8,0.1952]
[1756516148952,0.4855,4349.9,4349.8,0.715]
[1756516149148,0.1604,4349.3,4348.2,1.0836661]
[1756516149347,0.1604,4348.3,4348.1,0.234]
[1756516149546,0.3603,4348.2,4348.1,0.234]
[1756516149745,0.3603,4347.3,4347.2,0.482]
[1756516149950,0.3603,4347.3,4347.2,0.716]
[1756516150950,0.1999,4347.3,4347.1,33.125]
[1756516151149,0.1604,4347.2,4347.1,33.125]
[1756516151455,3.3682,4347.2,4347.1,33.359]
[1756516153252,3.3682,4347.2,4347.1,33.6458]
[1756516156854,3.5681,4347.2,4347.1,0.2868]
[1756516157052,3.5681,4347.2,4347.1,0.234]
[1756516157247,3.5681,4347.2,4347.1,0.716]
[1756516159349,3.5681,4347.2,4346.3,3.2078]
[1756516159350,3.4077,4347.2,4346.7,0.2868]
[1756516159556,0.36,4346.8,4346.7,0.2868]
[1756516159756,0.36,4346.8,4346.7,0.234]
[1756516160260,0.1999,4346.8,4346.4,0.2868]
[1756516160460,3.5678,4346.5,4346.4,0.234]
[1756516161557,3.5678,4346.5,4346.4,0.716]
[1756516170768,3.2078,4346.5,4346.4,0.716]
[1756516170968,0.18124803,4347.7,4346.4,4.4292]
[1756516170969,3.3679,4347.2,4346.4,4.4292]
[1756516171168,3.5678,4347.2,4347.1,0.1952]
[1756516171475,3.5678,4347.2,4347.1,0.482]
[1756516171676,0.1999,4347.0,4346.8,0.5198]
[1756516171866,0.1601,4346.9,4346.8,0.5198]
[1756516172066,0.36,4346.9,4346.8,0.5198]
[1756516173970,0.36,4346.8,4346.7,0.2868]
[1756516174773,0.36,4346.8,4346.7,0.482]
[1756516175174,0.36,4346.8,4346.7,0.2868]
[1756516175373,0.36,4346.7,4346.6,0.233]
[1756516175567,3.5678,4346.7,4346.6,0.233]
[1756516176175,0.1999,4346.3,4346.2,0.2868]
[1756516176485,0.36,4346.3,4346.2,0.482]
[1756516176873,0.1999,4346.3,4346.2,0.482]
[1756516177678,3.2078,4346.7,4346.3,0.2969]
[1756516177877,3.4089,4346.7,4346.6,0.5013]
[1756516178477,3.5679,4346.7,4346.6,0.5013]
[1756516178677,3.2078,4346.7,4346.6,0.5013]
[1756516180782,3.5679,4346.7,4346.6,0.7343]
[1756516181684,3.5679,4346.7,4346.6,0.5013]
[1756516181884,3.5679,4346.7,4346.6,0.2969]
[1756516183084,3.5679,4346.7,4346.6,0.5013]
[1756516187483,3.4089,4346.7,4346.5,0.5299]
[1756516187688,0.3601,4346.6,4346.5,0.5299]
[1756516188182,0.2011,4346.2,4346.1,0.5299]
[1756516188387,0.3601,4346.2,4346.1,0.7343]
[1756516189683,3.2078,4346.7,4346.1,0.7343]
[1756516189887,3.2078,4346.7,4346.2,0.2969]
[1756516190189,3.2078,4346.7,4346.1,0.233]
[1756516190190,3.5679,4346.7,4346.6,0.5013]
[1756516199988,3.2078,4346.7,4346.6,0.5013]
[1756516200191,3.3668,4347.2,4346.6,0.4374]
[1756516200390,3.5679,4347.2,4347.1,0.5013]
[1756516200596,3.2078,4347.2,4347.1,0.7083]
[1756516200792,0.3601,4347.9,4347.8,0.2044]
[1756516201097,0.3601,4347.9,4347.8,0.5013]
[1756516202289,3.2078,4348.0,4347.6,0.233]
[1756516202290,3.2078,4348.0,4347.9,0.5013]
[1756516202692,3.2078,4348.0,4347.3,0.2969]
[1756516202693,0.159,4347.9,4347.3,0.2969]
[1756516202901,0.3601,4347.4,4347.3,0.7343]
[1756516203193,0.3601,4347.0,4346.9,0.5013]
[1756516203396,0.3601,4347.0,4346.9,0.7343]
[1756516203895,0.3601,4347.0,4346.9,0.5013]
[1756516204197,0.3601,4347.0,4346.9,0.7343]
[1756516204884,0.2011,4347.0,4346.9,0.7343]
[1756516205084,3.2078,4347.5,4347.0,0.2969]
[1756516205289,3.2078,4347.5,4347.4,0.5013]
[1756516205593,3.2078,4348.2,4347.4,0.4374]
[1756516205789,3.5679,4348.2,4348.1,0.2044]
[1756516205994,3.5679,4348.2,4348.1,0.5013]
[1756516206588,0.2011,4347.6,4347.5,0.2969]
[1756516206794,0.3611,4347.6,4347.5,0.4932]
[1756516209498,0.2011,4347.6,4347.5,0.4932]
[1756516210491,0.3611,4347.6,4347.5,0.4932]
[1756516211092,3.2078,4348.2,4347.5,0.233]
[1756516211297,0.3582,4347.6,4347.5,0.233]
[1756516212195,0.3582,4347.6,4347.5,0.739]
[1756516213296,0.1982,4347.6,4347.5,0.739]
[1756516213498,3.2078,4347.7,4347.6,0.3097]
[1756516213697,3.2078,4347.7,4347.6,0.506]
[1756516218897,0.16,4348.1,4347.6,0.506]
[1756516219098,3.2078,4348.4,4347.7,0.3097]
[1756516219703,0.1593,4348.3,4347.7,0.3097]
[1756516220098,3.2078,4348.4,4347.7,0.3097]
[1756516220302,0.1593,4348.3,4347.7,0.3097]
[1756516220604,3.2078,4348.4,4347.7,0.3097]
[1756516220801,0.1593,4348.3,4347.7,0.3097]
[1756516221000,3.2078,4348.4,4347.7,0.3097]
[1756516221200,0.3575,4348.3,4348.2,0.506]
[1756516222307,0.1593,4348.2,4348.0,0.233]
[1756516222509,0.3575,4348.1,4348.0,0.233]
[1756516223506,0.3575,4348.1,4348.0,0.5427]
[1756516225311,3.2078,4348.4,4348.1,0.3097]
[1756516225611,3.2078,4348.4,4348.3,0.506]
[1756516228503,3.2078,4349.1,4348.3,0.1963]
[1756516228805,0.3575,4349.0,4348.9,0.506]
[1756516229206,3.2078,4349.1,4349.0,0.506]
[1756516229402,3.2078,4349.7,4349.0,0.1963]
[1756516229602,3.2078,4349.7,4349.5,0.506]
[1756516229603,0.3575,4349.6,4349.5,0.506]
[1756516230411,0.3575,4349.6,4349.5,0.739]
[1756516230606,0.1982,4349.6,4349.5,0.739]
[1756516230809,3.2078,4349.7,4349.6,0.506]
[1756516232009,3.5653,4349.7,4349.6,0.506]
[1756516235013,3.5653,4349.7,4349.6,0.3097]
[1756516235208,3.406,4349.7,4349.5,0.233]
[1756516235415,0.1982,4349.6,4348.9,0.3097]
[1756516235618,0.1982,4349.6,4349.5,0.739]
[1756516236112,0.3575,4349.6,4349.5,0.739]
[1756516241118,3.2078,4349.7,4349.5,0.4293]
[1756516241415,3.5574,4349.7,4349.6,0.488]
[1756516242013,0.1596,4349.6,4349.5,0.5244]
[1756516242214,0.3496,4349.6,4349.5,0.5244]
[1756516243213,0.3496,4349.6,4349.5,0.233]
[1756516244018,0.3496,4349.5,4349.4,0.4296]
[1756516244217,0.3496,4349.5,4349.4,0.1966]
[1756516244617,0.3496,4349.5,4349.4,0.488]
[1756516246812,3.2078,4349.7,4349.4,0.1966]
[1756516247013,3.2078,4349.7,4349.6,0.1966]
[1756516247216,5.2674,4350.2,4349.6,0.1966]
[1756516247423,5.4574,4350.2,4350.1,0.488]
[1756516250022,5.1078,4350.2,4350.1,0.488]
[1756516250519,5.4574,4350.2,4350.1,0.488]
[1756516254113,0.19,4349.6,4349.5,0.488]
[1756516254319,0.3496,4349.6,4349.5,0.5244]
[1756516256524,0.3496,4349.6,4349.5,0.721]
[1756516257922,0.3496,4349.6,4349.5,0.5244]
[1756516258925,0.3496,4349.6,4349.5,0.721]
[1756516260225,0.3496,4349.6,4349.5,0.233]
[1756516260430,0.3496,4349.6,4349.0,0.2914]
[1756516260431,4.98193791,4349.6,4349.0,0.2914]
[1756516260630,0.19,4349.1,4348.8,0.5244]
[1756516260925,3.2078,4349.2,4348.4,33.132]
[1756516260926,0.19,4348.9,4348.5,0.2914]
[1756516261225,0.3496,4348.7,4348.6,0.2914]
[1756516261522,0.3496,4348.7,4348.5,0.233]
[1756516261523,0.19,4348.7,4348.5,0.233]
[1756516261728,0.3496,4348.5,4348.4,33.132]
[1756516262327,0.3496,4348.5,4348.4,33.4234]
[1756516262626,3.2078,4348.7,4348.6,0.1966]
[1756516262822,3.2078,4348.7,4348.6,0.488]
[1756516266225,3.5574,4348.7,4348.6,0.488]
[1756516270233,3.5575,4348.7,4348.6,0.488]
[1756516270431,3.5575,4348.7,4348.2,0.233]
[1756516270634,0.3651,4348.3,4348.2,0.4239]
[1756516271135,0.3651,4348.3,4348.2,0.7139]
[1756516271633,0.3651,4348.3,4348.2,0.4809]
[1756516271838,0.2054,4347.7,4347.6,0.4809]
[1756516272135,0.3651,4347.7,4347.6,0.7139]
[1756516272933,0.1597,4348.0,4347.6,0.7139]
[1756516273133,0.3651,4348.6,4348.5,0.1909]
[1756516273328,0.3651,4348.6,4348.5,0.4809]
[1756516273928,3.2078,4348.7,4348.6,0.29]
[1756516274134,3.2078,4348.7,4348.6,0.4809]
[1756516275835,3.5729,4348.7,4348.6,0.4809]
[1756516276738,3.5729,4348.7,4348.6,0.29]
[1756516277239,3.5729,4348.7,4348.6,0.4809]
[1756516280138,3.5729,4348.7,4348.6,0.29]
[1756516281234,3.5729,4348.7,4348.6,0.4809]
[1756516282231,3.4132,4348.7,4348.6,0.4809]
[1756516282831,3.5721,4348.7,4348.6,0.4809]
[1756516289444,3.5721,4348.7,4348.6,0.29]
[1756516292748,0.2054,4348.1,4348.0,3.4978]
[1756516293045,0.3643,4348.1,4348.0,3.9207]
[1756516294345,0.3643,4348.1,4348.0,0.7129]
[1756516294544,0.3643,4348.1,4348.0,0.522]
[1756516296757,0.3643,4348.1,4348.0,0.7129]
[1756516297947,0.3643,4348.1,4348.0,0.232]
[1756516299249,0.3643,4348.1,4348.0,0.5344]
[1756516299461,0.3643,4348.1,4348.0,0.7265]
[1756516302147,0.2054,4348.1,4348.0,0.7265]
[1756516302456,3.5549,4348.7,4348.6,0.1921]
[1756516302650,3.5549,4348.7,4348.6,0.4945]
[1756516302857,3.3952,4348.7,4348.1,0.3024]
[1756516303055,0.1597,4348.6,4348.1,0.3024]
[1756516304157,0.3471,4348.6,4348.5,0.4945]
[1756516306158,3.2078,4348.7,4348.6,0.3024]
[1756516306358,3.2078,4348.7,4348.6,0.4945]
[1756516306763,3.5549,4348.7,4348.6,0.4945]
[1756516307361,3.2078,4348.7,4348.6,0.4945]
[1756516307854,3.5549,4348.7,4348.6,0.4945]
[1756516310058,0.1874,4348.2,4348.1,0.4945]
[1756516310260,0.3471,4348.2,4348.1,0.4945]
[1756516311452,0.3471,4348.2,4348.1,0.7265]
[1756516313357,3.2078,4348.7,4348.1,0.7265]
[1756516313661,0.3471,4348.6,4348.5,0.4945]
[1756516317958,0.3471,4348.6,4347.5,2.0589995]
[1756516318158,3.2078,4348.7,4347.7,0.3024]
[1756516318364,0.1597,4348.6,4347.7,0.3024]
[1756516318564,3.2078,4348.7,4347.8,0.22998]
[1756516318765,0.1597,4348.6,4347.9,0.3024]
[1756516319069,3.2078,4348.7,4347.9,0.3024]
[1756516319367,0.3471,4348.6,4348.5,0.4945]
[1756516325571,0.3471,4348.6,4348.5,0.3024]
[1756516326072,0.1874,4348.6,4347.7,0.3024]
[1756516326264,0.1597,4348.5,4347.8,0.232]
[1756516326466,3.2078,4348.7,4347.9,0.3024]
[1756516327565,0.1596,4348.6,4347.9,0.3024]
[1756516327762,3.2078,4348.7,4347.9,0.3024]
[1756516328163,0.1596,4348.6,4347.9,0.3024]
[1756516328568,3.2078,4348.7,4347.9,0.3024]
[1756516328769,0.1596,4348.6,4347.9,0.3024]
[1756516329467,3.2078,4348.7,4347.9,0.3024]
[1756516330776,0.3578,4348.0,4347.9,0.5051]
[1756516331077,0.3578,4348.0,4347.9,0.7371]
[1756516331273,0.1596,4348.6,4348.0,0.3071]
[1756516331477,0.3578,4348.6,4348.5,0.2027]
[1756516331671,0.3578,4348.6,4348.5,0.5098]
[1756516336480,0.1982,4348.6,4348.5,0.5098]
[1756516336873,0.3578,4348.6,4348.5,0.5098]
[1756516343383,3.2078,4348.7,4348.6,0.5098]
[1756516345477,3.39878752,4348.7,4348.6,0.5098]
[1756516347682,3.5656,4348.7,4348.6,0.5098]
[1756516358192,3.2078,4348.7,4348.6,0.5098]
[1756516358593,0.1599,4349.0,4348.7,0.3047]
[1756516358795,0.1599,4349.0,4348.9,0.4945]
[1756516359492,3.3677,4349.2,4349.1,0.1898]
[1756516359694,3.3677,4349.2,4349.1,0.4945]
[1756516359896,3.2078,4349.2,4349.1,0.4945]
[1756516360291,3.3677,4349.2,4349.1,0.4945]
[1756516360596,3.5622,4349.2,4349.1,0.4945]
[1756516361396,0.3544,4349.2,4349.1,0.4945]
[1756516362300,0.1599,4349.9,4349.2,0.3047]
[1756516362499,0.1599,4349.9,4349.3,0.232]
[1756516362699,0.3544,4349.9,4349.8,0.1898]
[1756516362895,0.3544,4349.9,4349.8,0.4945]
[1756516364995,3.2078,4350.0,4349.9,0.4945]
[1756516365399,3.5622,4350.0,4349.9,0.4945]
[1756516365597,3.2078,4350.0,4349.9,0.4945]
[1756516365991,3.3677,4350.0,4349.9,0.4945]
[1756516366501,3.5622,4350.0,4349.9,0.4945]
[1756516367205,0.3544,4350.0,4349.9,0.4945]
[1756516367794,0.1599,4350.1,4350.0,0.3047]
[1756516367994,0.1599,4350.1,4350.0,0.4945]
[1756516368196,1.9,4350.2,4350.1,0.3047]
[1756516368395,1.9,4350.2,4350.1,0.4945]
[1756516369105,2.2544,4350.2,4350.1,0.4945]
[1756516371307,2.2544,4350.2,4350.1,0.7265]
[1756516372703,1.9,4350.2,4350.1,0.7265]
[1756516373301,2.2544,4350.2,4350.1,0.7265]
[1756516376210,2.2544,4350.2,4350.1,0.4945]
[1756516376411,2.2544,4350.2,4350.1,0.7265]
[1756516377113,2.2544,4350.2,4350.1,0.4945]
[1756516377315,2.2544,4350.2,4350.1,0.7265]
[1756516380313,0.1945,4349.6,4348.8,5.2667995]
[1756516380519,0.3544,4349.0,4348.9,0.5367]
[1756516380817,0.3544,4349.0,4348.9,0.232]
[1756516383219,0.3544,4348.8,4348.7,33.4297]
[1756516383414,0.3544,4348.8,4348.7,33.357]
[1756516384920,0.1945,4348.8,4347.8,3.2078]
[1756516385116,0.1599,4348.7,4348.0,0.3047]
[1756516385322,3.2078,4349.2,4348.0,0.3047]
[1756516385715,0.1599,4349.1,4348.0,0.3047]
[1756516385912,3.2078,4349.2,4348.0,0.3047]
[1756516386823,0.1597,4349.1,4348.0,0.3047]
[1756516387416,3.2078,4349.2,4348.0,0.3047]
[1756516387812,0.1597,4349.1,4348.0,0.3047]
[1756516388719,3.2078,4349.2,4348.0,0.3047]
[1756516388917,3.43776,4349.2,4348.0,0.3047]
[1756516389621,0.1597,4349.1,4348.0,0.3047]
[1756516390617,3.2078,4349.2,4348.0,0.3047]
[1756516390823,0.1597,4349.1,4348.0,0.3047]
[1756516391023,3.43776,4349.2,4348.0,0.3047]
[1756516391218,3.2078,4349.2,4348.0,0.3047]
[1756516391621,0.1597,4349.1,4348.0,0.3047]
[1756516391820,3.2078,4349.2,4348.0,0.3047]
[1756516392222,0.1597,4349.1,4348.0,0.3047]
[1756516392525,3.2078,4349.2,4348.0,0.3047]
[1756516392723,0.1597,4349.1,4348.0,0.3047]
[1756516392924,3.2078,4349.2,4348.0,0.3047]
[1756516393718,0.1597,4349.1,4348.0,0.3047]
[1756516394224,3.2078,4349.2,4348.0,0.3047]
[1756516394812,3.43776,4349.2,4348.0,0.3047]
[1756516395018,0.1597,4349.1,4348.0,0.3047]
[1756516395318,3.43776,4349.2,4348.0,0.3047]
[1756516395622,0.1597,4349.1,4348.0,0.3047]
[1756516395923,3.43776,4349.2,4348.0,0.3047]
[1756516396125,0.1597,4349.1,4348.0,0.3047]
[1756516396325,3.43776,4349.2,4348.0,0.3047]
[1756516396824,3.43776,4349.2,4348.1,0.2874]
[1756516398326,0.1593,4349.1,4348.1,0.2874]
[1756516398519,3.2078,4349.2,4348.1,0.2874]
[1756516398719,3.43776,4349.2,4348.1,0.2874]
[1756516399126,0.1593,4349.1,4348.1,0.2874]
[1756516399626,3.2078,4349.2,4348.1,0.2874]
[1756516399827,3.43776,4349.2,4348.1,0.2874]
[1756516400720,0.22996,4349.1,4348.1,0.2874]
[1756516401122,0.1593,4349.1,4348.1,0.2874]
[1756516401326,3.2078,4349.2,4348.1,0.2874]
[1756516401627,0.1593,4349.0,4348.1,0.2874]
[1756516401841,0.1593,4348.9,4348.1,0.2874]
[1756516402128,3.2078,4349.2,4348.1,0.2874]
[1756516402328,0.1593,4349.0,4348.1,0.2874]
[1756516402529,0.22996,4349.1,4348.1,0.2874]
[1756516402725,0.1593,4349.1,4348.1,0.2874]
[1756516403029,3.2078,4349.2,4348.1,0.2874]
[1756516403230,0.1593,4349.1,4348.1,0.2874]
[1756516403627,0.1905,4347.9,4347.8,3.2078]
[1756516403825,0.232,4349.7,4347.5,0.477]
[1756516403826,0.3498,4347.6,4347.5,0.477]
[1756516404030,0.3498,4347.6,4347.5,0.709]
[1756516404332,3.2078,4348.5,4347.6,0.2874]
[1756516405126,0.1593,4348.4,4347.6,0.2874]
[1756516405532,3.2078,4348.5,4347.6,0.2874]
[1756516406131,0.1593,4348.4,4347.6,0.2874]
[1756516406832,3.2078,4348.5,4347.6,0.2874]
[1756516407035,0.1593,4348.4,4347.6,0.2874]
[1756516407235,3.2078,4348.5,4347.6,0.2874]
[1756516407932,0.1593,4348.4,4347.6,0.2874]
[1756516408132,3.2078,4348.5,4347.6,0.2874]
[1756516408437,0.1593,4348.4,4347.6,0.2874]
[1756516408632,3.2078,4348.5,4347.6,0.2874]
[1756516408835,0.1593,4348.4,4347.6,0.2874]
[1756516409135,3.2078,4348.5,4347.6,0.2874]
[1756516409534,0.1593,4348.4,4347.6,0.2874]
[1756516409734,3.2078,4348.5,4347.6,0.2874]
[1756516409934,0.1593,4348.4,4347.6,0.2874]
[1756516410330,3.2078,4348.5,4347.6,0.2874]
[1756516410535,0.1593,4348.4,4347.6,0.2874]
[1756516411436,3.2078,4348.5,4347.6,0.2874]
[1756516411934,0.1593,4348.4,4347.6,0.2874]
[1756516412236,3.2078,4348.5,4347.6,0.2874]
[1756516412531,0.1593,4348.4,4347.6,0.2874]
[1756516412737,3.2078,4348.5,4347.6,0.2874]
[1756516412936,0.1593,4348.4,4347.6,0.2874]
[1756516413236,3.2078,4348.5,4347.6,0.2874]
[1756516413941,0.1593,4348.4,4347.6,0.2874]
[1756516414131,3.2078,4348.5,4347.6,0.2874]
[1756516414634,0.1593,4348.4,4347.6,0.2874]
[1756516415135,3.2078,4348.5,4347.6,0.2874]
[1756516416337,0.1593,4348.4,4347.6,0.2874]
[1756516416638,3.2078,4348.5,4347.6,0.2874]
[1756516416844,0.16,4348.4,4347.6,0.2874]
[1756516417028,3.2078,4348.5,4347.6,0.2874]
[1756516418451,0.16,4348.4,4347.6,0.2874]
[1756516418942,3.2078,4348.5,4347.6,0.2874]
[1756516419632,0.16,4348.4,4347.6,0.2874]
[1756516419839,3.43779,4348.5,4347.6,0.2874]
[1756516420141,3.43779,4348.5,4347.2,2.0589995]
[1756516420142,0.3478,4347.3,4347.2,0.2868]
[1756516420334,0.3478,4347.3,4347.2,0.74879]
[1756516420733,0.3478,4347.3,4347.2,0.7258]
[1756516421540,3.2078,4348.0,4347.3,0.2868]
[1756516422437,0.16,4347.9,4347.3,0.2868]
[1756516422642,0.3478,4347.9,4347.8,0.4938]
[1756516432654,0.16,4347.8,4346.9,0.2868]
[1756516432856,0.16,4347.8,4346.3,2.88267879]
[1756516432857,0.16,4347.4,4346.4,0.2868]
[1756516433059,3.5556,4346.5,4346.4,0.2868]
[1756516433255,0.16,4346.4,4345.9,0.2868]
[1756516433459,0.3478,4346.0,4345.9,0.4938]
[1756516440260,0.3478,4346.0,4345.9,0.7258]
[1756516441169,0.3478,4346.0,4345.9,0.4938]
[1756516441360,0.3478,4346.0,4345.9,0.7258]
[1756516445773,0.3478,4346.0,4345.9,0.4938]
[1756516446069,0.3478,4346.0,4345.9,0.7258]
[1756516448074,0.3478,4346.0,4345.9,0.4938]
[1756516448278,0.3478,4346.0,4345.9,0.7258]
[1756516448977,0.1599,4346.2,4346.0,0.3106]
[1756516449171,0.1599,4346.3,4346.0,0.3106]
[1756516449371,0.3522,4346.3,4346.2,0.5143]
[1756516452677,3.56,4346.3,4346.2,0.5143]
[1756516453974,3.56,4346.3,4346.2,0.3106]
[1756516454277,0.1923,4346.0,4345.9,0.4357]
[1756516454576,0.3522,4346.0,4345.9,0.4357]
[1756516454771,0.3522,4346.0,4345.9,0.7463]
[1756516455376,0.3522,4346.0,4345.1,3.2078]
[1756516455377,0.3522,4346.0,4345.5,0.3106]
[1756516455578,0.3522,4345.3,4345.2,0.7463]
[1756516455776,0.3522,4345.3,4345.2,0.5143]
[1756516455976,3.56,4345.3,4345.2,0.5143]
[1756516457176,3.56,4345.3,4345.2,0.3106]
[1756516457784,3.56,4345.3,4345.2,0.5143]
[1756516460383,3.56,4345.3,4345.2,0.3106]
[1756516461876,3.56,4345.3,4345.2,0.5143]
[1756516471594,0.3522,4345.3,4345.2,0.5143]
[1756516472795,0.1605,4345.6,4345.3,0.3106]
[1756516472995,0.3528,4345.7,4345.6,0.2037]
[1756516473302,0.3528,4345.7,4345.6,0.5143]
[1756516473691,0.1923,4345.7,4345.6,0.5143]
[1756516473892,3.2078,4345.8,4345.7,0.3106]
[1756516474088,3.3683,4345.8,4345.7,0.5143]
[1756516474797,3.5606,4345.8,4345.7,0.5143]
[1756516477300,3.4001,4345.8,4345.7,0.5143]
[1756516477606,3.2078,4345.8,4345.7,0.5143]